[Event "21st Bangkok CC Open 2024"]
[Site "Bangkok"]
[Date "2024.04.19"]
[Round "4.7"]
[White "Bernadskiy, Vitaliy"]
[Black "Cannon, David"]
[Result "1-0"]
[ECO "E97"]
[WhiteElo "2561"]
[BlackElo "2195"]
[Annotator "TA"]
[PlyCount "71"]
[EventDate "2024.04.13"]
[EventType "swiss"]
[EventCountry "THA"]
[SourceTitle "playchess.com"]
[Source "ChessBase"]
[SourceQuality "1"]
[TimeControl "40/5400+30:1800+30"]

{[%evp 18,71,43,50,71,66,68,60,67,66,88,85,102,60,60,77,85,58,57,77,79,68,145,169,157,176,154,143,140,135,145,152,167,165,182,171,188,205,376,340,493,500,603,618,1015,973,1131,1038,1056,1053,1106,1010,1104,1056,1420,1254]} 1. d4 {[%emt 0:00:03]} Nf6 {[%emt 0:00:08]} 2. c4 {[%emt 0:00:03]} g6 {[%emt 0:00:04]} 3. Nc3 {[%emt 0:00:04]} Bg7 {[%emt 0:00:05]} 4. e4 {[%emt 0:00:04]} d6 {[%emt 0:00:03]} 5. Be2 {[%emt 0:00:19]} O-O {[%emt 0:00:08]} 6. Nf3 {[%emt 0:00:02]} e5 {[%emt 0:00:07]} 7. O-O {[%emt 0:00:04]} Nc6 {[%emt 0:00:07]} 8. d5 {[%emt 0:00:05]} Ne7 {[%emt 0:00:05]} 9. b4 {[%emt 0:00:05]} Ne8 {[%emt 0:00:21]} 10. a4 {[%emt 0:03:41][%cal Ba2a4,Ba4a5][%mdl 32]} h6 {[%emt 0:02:30]} 11. a5 {[%emt 0:02:03]} f5 {[%emt 0:01:19]} 12. Nd2 {[%emt 0:04:23] White has more active pieces.} Nf6 {[%emt 0:03:59] White is slightly better.} 13. Ba3 {[%emt 0:02:17]} g5 {[%emt 0:04:40]} 14. c5 {[%emt 0:02:45]} Ng6 {[%emt 0:06:50]} 15. Nc4 {[%emt 0:03:21]} Nxe4 {[%emt 0:03:23]} 16. Nxe4 {[%emt 0:00:23]} fxe4 {[%emt 0:00:03]} 17. cxd6 {[%emt 0:03:04]} cxd6 {[%emt 0:01:25]} 18. b5 {[%emt 0:00:07]} Rf6 {[%emt 0:00:24]} 19. Nd2 {[%emt 0:00:55]} Bf8 {[%emt 0:08:09]} (19... Bf5 $14) 20. Nxe4 $16 {[%emt 0:00:50]} Rf4 {[%emt 0:00:06]} 21. Bd3 {[%emt 0:02:13]} Nh4 {[%emt 0:12:50]} 22. Bc1 {[%emt 0:01:26]} Rf7 {[%emt 0:02:15]} 23. Ng3 {[%emt 0:05:04]} Bd7 {[%emt 0:01:44]} 24. Be3 {[%emt 0:01:43]} Bg7 {[%emt 0:01:52][%cal Oe5e4]} 25. Ra3 {[%emt 0:00:09]} Qe7 {[%emt 0:03:03]} 26. Qb1 {[%emt 0:00:21]} Bg4 {[%emt 0:12:43]} 27. Be4 {[%emt 0:01:46]} Kh8 $2 {[%emt 0:07:39] [#]} (27... Qf6 {was necessary.} 28. b6 axb6 29. Bxb6 (29. Qxb6 Bf5 $18) 29... Rc8) 28. Rc1 {[%emt 0:00:42]} Qd7 {[%emt 0:06:15]} (28... Qf8 {was worth a try.} 29. Rac3 Bf6) 29. Rac3 $18 {[%emt 0:01:29] White is clearly winning.} Raf8 {[%emt 0:11:43][%cal Ba8f8,Bf8f3,Bf3a3,Ba3a2][%mdl 32]} 30. Bxa7 {[%emt 0:00:50]} Bf3 {[%emt 0:00:34]} 31. Bxf3 {[%emt 0:02:34]} ({Less strong is} 31. gxf3 Qh3 32. f4 exf4 $16) 31... Rxf3 {[%emt 0:00:06]} 32. Rxf3 {[%emt 0:00:39]} (32. gxf3 $2 {gets mated.} Qh3) 32... Rxf3 {[%emt 0:00:06]} 33. a6 {[%emt 0:00:50]} ({Weaker is} 33. gxf3 Qh3 $11) 33... Ra3 {[%emt 0:01:21]} 34. Qb4 {[%emt 0:01:27]} Ra2 {[%emt 0:00:29]} 35. Qc4 {[%emt 0:00:22]} Ra5 {[%emt 0:01:57]} 36. Qc8+ {[%emt 0:00:07] Weighted Error Value: White=0.07 (flawless) /Black=0.39.  Mistake:       	---       	Black=3      Inaccurate:     	White=2     	Black=1      OK:         	White=8     	Black=5      Best:        	White=1     	---} 1-0

[Event "21st Bangkok CC Open 2024"]
[Site "Bangkok"]
[Date "2024.04.19"]
[Round "4.8"]
[White "Lye, Lik Zang"]
[Black "Pranesh M"]
[Result "0-1"]
[ECO "D30"]
[WhiteElo "2286"]
[BlackElo "2538"]
[Annotator "TA"]
[PlyCount "64"]
[EventDate "2024.04.13"]
[EventType "swiss"]
[EventCountry "THA"]
[SourceTitle "playchess.com"]
[Source "ChessBase"]
[SourceQuality "1"]
[TimeControl "40/5400+30:1800+30"]

{[%evp 9,64,25,28,22,19,24,32,9,37,36,28,29,52,40,78,0,7,0,37,33,51,56,54,35,38,-10,-12,-29,-25,-34,-29,-82,0,-77,-60,-61,0,-101,-131,-114,-112,-563,-467,-772,-744,-793,-784,-1206,-1135,-1308,-1241,-29989,-850,-29984,-29985,-29993,-1056]} 1. d4 {[%emt 0:00:04]} d5 {[%emt 0:00:07]} 2. c4 {[%emt 0:00:12]} e6 {[%emt 0:00:04]} 3. Nf3 {[%emt 0:00:11]} c6 {[%emt 0:00:10]} 4. e3 {[%emt 0:00:56]} Nf6 {[%emt 0:00:05]} 5. b3 {[%emt 0:00:29]} c5 {[%emt 0:01:07]} 6. cxd5 {[%emt 0:02:45]} Nxd5 {[%emt 0:01:19]} 7. Bb2 {[%emt 0:08:44]} cxd4 {[%emt 0:00:41]} 8. Nxd4 {[%emt 0:01:01] White is slightly better.} Bb4+ {[%emt 0:03:28]} 9. Nd2 {[%emt 0:01:03]} e5 {[%emt 0:00:13]} 10. N4f3 {[%emt 0:04:41]} f6 {[%emt 0:00:59]} 11. a3 {[%emt 0:03:44]} Be7 {[%emt 0:00:48]} 12. Bc4 {[%emt 0:03:48]} (12. Bd3 $16) 12... Nb6 $11 {[%emt 0:03:28]} 13. Bb5+ {[%emt 0:07:04]} Kf7 {[%emt 0:06:48]} 14. Qb1 {[%emt 0:12:14]} g6 {[%emt 0:10:45]} 15. Bd3 {[%emt 0:02:14]} Be6 {[%emt 0:01:33]} 16. h4 {[%emt 0:02:13]} N8d7 {[%emt 0:02:43]} 17. b4 {[%emt 0:08:48]} (17. Rg1 $14) 17... Na4 {[%emt 0:04:11]} 18. Bc2 {[%emt 0:10:15]} Ndb6 {[%emt 0:04:03]} 19. h5 {[%emt 0:02:16][%cal Rc2g6]} Kg7 {[%emt 0:00:29]} 20. Nh4 {[%emt 0:25:29]} (20. h6+ $11 Kf7 21. O-O) 20... Bf7 {[%emt 0:02:02] Black is more active.} (20... gxh5 $6 21. Nf5+ Kf8 22. Rxh5 $11) ({Black should play} 20... Nxb2 $17 21. Qxb2 Qxd2+ (21... gxh5 22. Bf5 $16) 22. Kxd2 Nc4+ (22... gxh5 $2 23. Ke1 $18) 23. Kc3 Nxb2 24. Kxb2 e4 (24... gxh5 25. Nf5+ Bxf5 26. Bxf5 $16)) 21. Rh3 {[%emt 0:01:01]} (21. hxg6 $11 {keeps the balance.} hxg6 22. Bxg6) 21... Nxb2 $17 {[%emt 0:03:06]} (21... gxh5 22. Rg3+ Kf8 23. Bxh7 $16) 22. Qxb2 {[%emt 0:00:49]} f5 {[%emt 0:00:24]} (22... gxh5 23. Qb1 $16) (22... Qxd2+ $15 23. Kxd2 Nc4+ (23... gxh5 $2 24. Nf5+ Kf8 25. Bb3 $18) 24. Kc1 Nxb2 25. Kxb2 f5 (25... gxh5 26. Nf5+ Kf8 27. Rd1 $14)) 23. Qxe5+ {[%emt 0:01:17]} (23. Rd1 $11 {remains equal.} Bxh4 24. h6+ (24. Nf3 Qf6 $11) 24... Kxh6 25. Qxe5 (25. Nf3 Qf6 $18)) 23... Bf6 {[%emt 0:00:38]} 24. Nxf5+ {[%emt 0:00:28]} gxf5 {[%emt 0:00:36]} 25. Qc5 {[%emt 0:00:41][%mdl 8192] Loses the game.} Be6 {[%emt 0:05:29]} 26. Bxf5 {[%emt 0:00:28]} (26. Bb3 $142 Bxb3 (26... Bxa1 $2 27. Bxe6 Rf8 28. Bxf5 $19) 27. Rg3+ Kh6 28. Qxf5) 26... Rc8 $19 {[%emt 0:01:03]} (26... Bxf5 27. h6+ Kf7 (27... Kg6 $2 28. Rg3+ Kxh6 29. Qxf5 $18) 28. Qxf5 $15) 27. h6+ {[%emt 0:00:33]} Kf7 {[%emt 0:00:04]} 28. Qa5 {[%emt 0:00:31]} Bxa1 {[%emt 0:00:20]} 29. Bxe6+ {[%emt 0:00:27]} Kxe6 {[%emt 0:00:07]} 30. Nb3 {[%emt 0:00:24] [#]} Qd5 {[%emt 0:00:12]} 31. Nc5+ {[%emt 0:00:36]} Ke7 {[%emt 0:00:01]} 32. Qxa7 {[%emt 0:00:24] [#]} Rhd8 {[%emt 0:00:15] Weighted Error Value: White=1.36/Black=0.36.  Loses game:     	White=1     	---        Mistake:       	White=6     	Black=2      Inaccurate:     	---       	Black=3      OK:         	White=5     	Black=5      Best:        	White=3     	Black=3} 0-1

[Event "21st Bangkok CC Open 2024"]
[Site "Bangkok"]
[Date "2024.04.16"]
[Round "4.9"]
[White "Mitrabha, Guha"]
[Black "Ayush Sharma"]
[Result "1/2-1/2"]
[ECO "A32"]
[WhiteElo "2537"]
[BlackElo "2311"]
[Annotator "TA"]
[PlyCount "102"]
[EventDate "2024.04.13"]
[EventType "swiss"]
[EventCountry "THA"]
[SourceTitle "playchess.com"]
[Source "ChessBase"]
[SourceQuality "1"]
[TimeControl "40/5400+30:1800+30"]

{[%evp 14,102,0,-9,0,0,0,0,8,-10,4,0,-17,-59,-55,-63,-25,-60,-67,-66,-45,-60,-55,-45,-39,-48,-38,-31,0,0,0,-3,0,-29,-30,-28,-4,-38,-41,-45,-52,-52,-50,-50,-47,-53,-53,-58,-39,-53,-54,-45,-41,-40,-37,-38,-38,-45,-46,-41,-32,-35,-10,-12,0,0,0,0,0,0,0,-8,0,0,0,0,0,0,0,0,0,0,0,-8,0,-55,-35,-55,-55,-55,10]} 1. d4 {[%emt 0:03:49]} Nf6 {[%emt 0:00:07]} 2. c4 {[%emt 0:00:18]} e6 {[%emt 0:00:06]} 3. g3 {[%emt 0:00:06]} c5 {[%emt 0:00:12]} 4. Nf3 {[%emt 0:00:12]} cxd4 {[%emt 0:00:11]} 5. Nxd4 {[%emt 0:00:07]} Qc7 {[%emt 0:00:37]} 6. Bg2 {[%emt 0:00:32]} Qxc4 {[%emt 0:01:10]} 7. Nc3 {[%emt 0:00:08]} a6 {[%emt 0:01:58]} 8. O-O {[%emt 0:00:09]} Nc6 {[%emt 0:01:43]} 9. Nb3 {[%emt 0:00:03]} Qg4 {[%emt 0:07:00]} 10. Bf4 {[%emt 0:05:52]} d5 {[%emt 0:01:35] The position is equal.} 11. Bc7 {[%emt 0:15:07][%cal Oe2e4]} Bd7 {[%emt 0:06:35]} 12. h3 {[%emt 0:00:58]} Qg6 {[%emt 0:02:08]} 13. Na4 {[%emt 0:03:40]} Rc8 {[%emt 0:01:35]} 14. Bb6 {[%emt 0:00:02]} Ne5 {[%emt 0:03:18]} 15. Na5 {[%emt 0:10:56]} Qc2 {[%emt 0:15:47]} 16. Rc1 {[%emt 0:05:15]} Qxd1 {[%emt 0:05:36]} (16... Qxa4 $2 {is the wrong capture.} 17. Rxc8+ (17. Nxb7 $2 {loses.} Qb5 $19) 17... Bxc8 18. Qxa4+ $18) 17. Rxc8+ {[%emt 0:02:05]} Bxc8 {[%emt 0:00:01]} 18. Rxd1 {[%emt 0:00:02]} Bb4 {[%emt 0:12:25]} 19. a3 {[%emt 0:02:42]} Bxa5 {[%emt 0:02:11]} 20. Bxa5 {[%emt 0:00:02]} Nc4 {[%emt 0:01:52]} 21. Bc3 {[%emt 0:04:01]} Bd7 {[%emt 0:01:38]} 22. Nc5 {[%emt 0:00:09]} Bc6 {[%emt 0:00:08]} 23. a4 {[%emt 0:00:57]} O-O {[%emt 0:05:00]} 24. b3 {[%emt 0:00:49][%cal Oc3f6] [#] Bxf6! would now be deadly.} Nb6 {[%emt 0:02:14]} (24... Nd6 $5) 25. Rc1 {[%emt 0:14:08]} Rc8 {[%emt 0:03:20]} 26. e3 {[%emt 0:02:43]} Nbd7 {[%emt 0:01:30]} 27. Nd3 {[%emt 0:01:09]} b6 {[%emt 0:02:51]} 28. Bd4 {[%emt 0:00:32]} Bb7 {[%emt 0:01:19]} 29. Rxc8+ {[%emt 0:01:56]} Bxc8 {[%emt 0:00:02]} 30. b4 {[%emt 0:00:40]} Ne8 {[%emt 0:02:51]} 31. Ne5 {[%emt 0:02:48]} Nxe5 {[%emt 0:00:15]} 32. Bxe5 $15 {[%emt 0:00:01][%mdl 4096] Endgame. KBB-KBN} Bd7 {[%emt 0:02:20]} 33. Bf1 {[%emt 0:00:32]} b5 {[%emt 0:00:24]} 34. a5 {[%emt 0:00:07]} f6 {[%emt 0:00:39]} 35. Bb8 {[%emt 0:00:02]} Kf7 {[%emt 0:01:35]} 36. f4 {[%emt 0:00:13]} Ke7 {[%emt 0:00:45]} 37. Bd3 {[%emt 0:00:51]} h6 {[%emt 0:00:36]} 38. e4 {[%emt 0:02:11]} dxe4 {[%emt 0:00:23]} 39. Bxe4 {[%emt 0:00:08]} Nd6 {[%emt 0:00:06]} 40. Bg2 {[%emt 0:01:01]} Bc8 {[%emt 0:00:13]} 41. Kf2 {[%emt 0:30:30]} g5 {[%emt 0:31:29]} 42. Bc6 {[%emt 0:03:12]} gxf4 {[%emt 0:04:55]} 43. gxf4 {[%emt 0:00:05]} Nf5 {[%emt 0:02:21]} 44. Be4 {[%emt 0:00:27]} Nd6 {[%emt 0:00:10]} 45. Bc6 {[%emt 0:00:01]} e5 {[%emt 0:00:05]} 46. fxe5 {[%emt 0:00:05]} fxe5 {[%emt 0:00:02]} 47. h4 {[%emt 0:00:33]} Ke6 {[%emt 0:03:10]} 48. Bg2 {[%emt 0:00:26]} Nf5 {[%emt 0:00:38]} 49. Bh3 {[%emt 0:00:08]} ({Better is} 49. h5 $11) 49... Kf6 {[%emt 0:00:15] Black is slightly better.} 50. Bxf5 {[%emt 0:00:20]} Kxf5 {[%emt 0:00:02]} 51. Ke3 {[%emt 0:00:42]} e4 {Weighted Error Value: White=0.09 (flawless) /Black=0.07 (flawless) .  Mistake:       	White=1     	Black=1      Inaccurate:     	White=4     	Black=2      OK:         	White=23    	Black=12     Best:        	---       	Black=1} (51... h5 $15) 1/2-1/2

[Event "21st Bangkok CC Open 2024"]
[Site "Bangkok"]
[Date "2024.04.16"]
[Round "4.10"]
[White "Makhnev, Denis"]
[Black "Arca, Christian Gian Karlo"]
[Result "1-0"]
[ECO "B13"]
[WhiteElo "2516"]
[BlackElo "2283"]
[Annotator "TA"]
[PlyCount "63"]
[EventDate "2024.04.13"]
[EventType "swiss"]
[EventCountry "THA"]
[SourceTitle "playchess.com"]
[Source "ChessBase"]
[SourceQuality "1"]
[TimeControl "40/5400+30:1800+30"]

{[%evp 9,63,12,11,8,11,4,8,17,51,47,66,47,41,49,50,47,65,53,113,86,89,89,101,85,115,115,126,131,121,129,124,127,133,129,296,298,312,287,344,352,412,429,441,417,422,368,442,424,472,476,626,612,679,667,738,660]} 1. e4 {[%emt 0:00:04]} c6 {[%emt 0:01:52]} 2. Nf3 {[%emt 0:00:09]} d5 {[%emt 0:00:20]} 3. exd5 {[%emt 0:00:08]} cxd5 {[%emt 0:00:40]} 4. d4 {[%emt 0:00:06]} Nf6 {[%emt 0:00:57]} 5. Ne5 {[%emt 0:00:17]} Nc6 {[%emt 0:01:13]} 6. c3 {[%emt 0:00:08][%cal Bc2c3,Bc3c4,Bc4c5][%mdl 32]} Bf5 {[%emt 0:03:41]} 7. Bb5 {[%emt 0:00:19]} Qb6 {[%emt 0:00:20]} 8. c4 {[%emt 0:00:10] The position is equal.} a6 {[%emt 0:06:24]} 9. Bxc6+ {[%emt 0:11:42]} bxc6 {[%emt 0:01:19]} 10. c5 {[%emt 0:00:05]} Qb7 {[%emt 0:08:11]} 11. Qb3 {[%emt 0:00:16]} Qc7 {[%emt 0:13:15]} 12. Qa4 {[%emt 0:01:54]} Bd7 {[%emt 0:00:05]} 13. Nc3 {[%emt 0:10:40]} e6 {[%emt 0:00:15]} (13... g6 $14) 14. h3 {[%emt 0:02:56]} Be7 {[%emt 0:00:09][%cal Bf8e7,Be7d8,Bd8a5][%mdl 32]} 15. Bf4 {[%emt 0:00:11][%cal Oe5g6]} Qc8 {[%emt 0:01:39]} 16. Qb3 {[%emt 0:04:49]} Bd8 {[%emt 0:02:10]} 17. Na4 {[%emt 0:03:18] Excellent horsemanship.} Ba5+ {[%emt 0:05:40]} 18. Ke2 {[%emt 0:00:23]} Rb8 {[%emt 0:14:47][%cal Ba8b8,Bb8b7,Bb7b6,Bb6b5][%mdl 32]} 19. Nb6 {[%emt 0:01:02]} Bxb6 {[%emt 0:00:36]} 20. cxb6 {[%emt 0:01:07]} Rb7 {[%emt 0:00:13] Black is weak on the dark squares} 21. Nd3 $36 {[%emt 0:10:01][%mdl 2048] Strongly threatening Nc5. White is on the roll.} c5 $2 {[%emt 0:00:34] [#] A mistake that costs the game.} 22. Nxc5 $18 {[%emt 0:05:37]} (22. dxc5 $6 Bb5 $18) 22... Bb5+ {[%emt 0:02:51]} 23. Ke3 {[%emt 0:00:54]} e5 {[%emt 0:01:40]} 24. Bxe5 {[%emt 0:00:09]} Rxb6 {[%emt 0:00:06]} 25. a4 {[%emt 0:00:42] Active counter play!} O-O {[%emt 0:00:51][%cal Of6d7]} 26. axb5 {[%emt 0:02:12]} Rxb5 {[%emt 0:01:56]} 27. Qc3 {[%emt 0:04:47]} Re8 {[%emt 0:02:34][%cal Oe8e5]} 28. Rhc1 {[%emt 0:07:05] White is clearly winning.} (28. Rxa6 Rxc5 29. Qd3 (29. Qxc5 $2 Rxe5+ 30. dxe5 Qxc5+ 31. Kf3 Qc8 $19) (29. dxc5 Qxa6 30. Qd4 Qe6 $17) 29... Nd7 $15) 28... Qf5 {[%emt 0:02:10]} 29. f3 {[%emt 0:00:35] Wards off Ne4} (29. Nxa6 $2 {is the wrong capture.} Ne4 30. Qe1 (30. Qc2 $2 {leads to mate.} Rb3+) 30... Rxb2 $19) (29. Rxa6 Ne4 30. Nxe4 Qxe4+ 31. Kd2 Qxg2 $18) 29... Nh5 {[%emt 0:03:37]} 30. Kf2 {[%emt 0:00:14]} Qg5 {[%emt 0:00:33]} 31. Re1 {[%emt 0:00:36]} Qh4+ {[%emt 0:00:36]} 32. Kg1 {[%emt 0:01:00] Weighted Error Value: White=0.06 (flawless) /Black=0.39.  Loses game:     	---       	Black=1      Mistake:       	---       	Black=1      Inaccurate:     	---       	Black=3      OK:         	White=12    	Black=9      Best:        	White=3     	Black=1} 1-0

[Event "21st Bangkok CC Open 2024"]
[Site "Bangkok"]
[Date "2024.04.17"]
[Round "5.1"]
[White "Pham Tran Gia Phuc"]
[Black "Cao, Qingfeng"]
[Result "1/2-1/2"]
[ECO "B10"]
[WhiteElo "2423"]
[BlackElo "2038"]
[Annotator "TA"]
[PlyCount "98"]
[EventDate "2024.04.13"]
[EventType "swiss"]
[EventCountry "THA"]
[SourceTitle "playchess.com"]
[Source "ChessBase"]
[SourceQuality "1"]
[TimeControl "40/5400+30:1800+30"]

{[%evp 9,98,-7,10,16,27,-10,0,-45,37,31,33,11,18,14,23,24,18,17,20,2,6,6,10,0,0,-22,-22,-12,-6,-10,-7,-10,-11,-7,-17,-75,-75,-75,-75,-75,-75,-75,-76,-77,-77,-77,-70,-77,-70,-70,-70,-70,-70,-70,-70,-70,-70,-75,-70,-70,-70,-70,-70,-70,-61,-61,-52,-62,-52,-52,-52,-52,-52,-52,-45,-103,-103,-106,-112,-112,-40,-40,-40,-40,-40,-40,-40,-40,-40,-40,0]} 1. e4 {[%emt 0:00:06]} c6 {[%emt 0:00:05]} 2. Nf3 {[%emt 0:00:04][%cal Bg1f3,Bf3e1,Be1d3][%mdl 32]} d5 {[%emt 0:00:05]} 3. d3 {[%emt 0:00:05]} dxe4 {[%emt 0:08:04]} 4. dxe4 {[%emt 0:00:08]} Qxd1+ {[%emt 0:00:06]} 5. Kxd1 {[%emt 0:00:03]} Nd7 {[%emt 0:00:27]} 6. Ne1 {[%emt 0:00:06]} e5 {[%emt 0:02:06]} 7. a4 {[%emt 0:00:07]} Nc5 {[%emt 0:09:51]} 8. Nd2 {[%emt 0:00:23] The position is equal.} a5 {[%emt 0:00:44]} (8... f5 $1 $15) 9. Nd3 $14 {[%emt 0:00:25]} f6 {[%emt 0:01:43]} 10. c3 {[%emt 0:04:15]} Be6 {[%emt 0:01:40]} 11. Kc2 {[%emt 0:00:08]} Nh6 {[%emt 0:01:02]} 12. f3 {[%emt 0:00:45] Against Ng4} Nf7 {[%emt 0:00:19]} 13. Nxc5 {[%emt 0:12:53]} Bxc5 {[%emt 0:00:02]} 14. Nc4 {[%emt 0:00:09][%cal Oc4a5]} Ke7 {[%emt 0:05:00]} 15. Be2 {[%emt 0:05:17]} Rhd8 {[%emt 0:05:11]} 16. Bd2 {[%emt 0:07:39]} Nd6 {[%emt 0:07:33]} 17. Nxd6 {[%emt 0:31:24]} Rxd6 {[%emt 0:03:33]} 18. Rhd1 {[%emt 0:01:28]} Rad8 {[%emt 0:01:59][%cal Oe6b3]} 19. b4 {[%emt 0:07:10] [#]} Rxd2+ $1 {[%emt 0:10:11]} 20. Rxd2 {[%emt 0:00:39] [#]} Bb3+ $1 {[%emt 0:00:10]} 21. Kxb3 {[%emt 0:00:08] Black must now prevent Rxd8.} ({Wrong is} 21. Kc1 $2 Be3 (21... axb4 $2 {loses.} 22. Rxd8 Kxd8 23. cxb4 $18) 22. Kb2 Rxd2+ $19) 21... Rxd2 {[%emt 0:00:05]} 22. Ra2 {[%emt 0:08:41]} (22. Bf1 $11 {keeps the balance.} axb4 23. cxb4) 22... Rxa2 $17 {[%emt 0:00:35]} 23. Kxa2 {[%emt 0:00:07]} axb4 {[%emt 0:00:05]} 24. cxb4 {[%emt 0:00:06]} Bxb4 {[%emt 0:00:04][%mdl 4096] Endgame. KB-KB} 25. Kb3 {[%emt 0:00:07]} Be1 {[%emt 0:03:08]} 26. Bc4 {[%emt 0:00:09]} h5 {[%emt 0:01:11]} 27. Bg8 {[%emt 0:00:27]} h4 {[%emt 0:07:33]} 28. Kc4 {[%emt 0:00:09]} Kd6 {[%emt 0:00:21]} 29. Bh7 {[%emt 0:02:43]} Bf2 {[%emt 0:00:13]} 30. Bf5 {[%emt 0:00:09]} Kc7 {[%emt 0:00:28]} 31. Be6 {[%emt 0:00:16]} Kb6 {[%emt 0:01:06]} 32. Bc8 {[%emt 0:00:06]} Bg1 {[%emt 0:02:08]} 33. g3 {[%emt 0:00:30]} h3 {[%emt 0:00:38]} 34. Bxh3 {[%emt 0:02:25]} Bxh2 {[%emt 0:00:05]} 35. g4 {[%emt 0:00:22]} Ka5 {[%emt 0:01:39]} 36. Kb3 {[%emt 0:00:07]} g5 {[%emt 0:07:09]} 37. Bf1 {[%emt 0:00:11]} Bg3 {[%emt 0:00:22]} 38. Be2 {[%emt 0:00:20]} Be1 {[%emt 0:00:22]} 39. Bc4 {[%emt 0:02:58]} Kb6 {[%emt 0:09:24]} 40. Be6 $1 {[%emt 0:00:16]} Kc5 {[%emt 0:00:05]} 41. Bc8 {[%emt 0:30:05]} b5 {[%emt 0:34:32]} 42. axb5 {[%emt 0:00:06]} ({White should try} 42. Bd7 $15) 42... cxb5 {[%emt 0:00:15]} 43. Bd7 {[%emt 0:00:22]} Ba5 {[%emt 0:00:18]} 44. Be8 {[%emt 0:00:11] [#]} b4 {[%emt 0:01:02]} (44... Bb4 $1 $17) 45. Bf7 $15 {[%emt 0:01:24] Black is slightly better.} Bd8 {[%emt 0:00:18]} 46. Kc2 {[%emt 0:01:28]} Kd4 {[%emt 0:00:29]} 47. Kd2 $1 {[%emt 0:00:06]} Ba5 {[%emt 0:00:47]} 48. Bb3 $1 {[%emt 0:00:06]} Bb6 {[%emt 0:00:05]} 49. Bf7 {[%emt 0:00:05]} Ba5 {[%emt 0:00:04] Weighted Error Value: White=0.07 (flawless) /Black=0.09 (flawless) .  Mistake:       	White=2     	Black=2      Inaccurate:     	White=2     	Black=1      OK:         	White=13    	Black=15     Best:        	White=3     	Black=1      Strong:       	White=3     	---        Brilliant:      	---       	Black=1} 1/2-1/2